bitfinex-derivatives/quotes_SOLF0:USTF0_20250311
["timestamp","ask_amount","ask_price","bid_price","bid_amount"]
[1741657173664,346.32,117.62,117.52,49.94927457]
[1741657173863,280.9,117.62,117.52,49.94927457]
[1741657174164,280.9,117.62,117.48,54.22617457]
[1741657174165,4.085,117.64,117.56,0.06374615]
[1741657174371,49.85261198,117.67,117.55,49.85261198]
[1741657174667,115.27261198,117.67,117.56,4.2769]
[1741657174872,49.85261198,117.65,117.56,4.2769]
[1741657175163,49.85261198,117.63,117.56,4.2769]
[1741657175356,0.05560674,117.62,117.59,0.0587272]
[1741657175560,396.05261198,117.61,117.49,8.7784]
[1741657175759,49.85261198,117.58,117.49,4.3793]
[1741657176267,69.485,117.6,117.49,54.23191198]
[1741657176561,119.33761198,117.6,117.49,4.3793]
[1741657176764,0.06448874,117.56,117.53,0.05481478]
[1741657178564,0.06448874,117.56,117.46,87.13222164]
[1741657178965,115.23261198,117.59,117.46,87.13222164]
[1741657179262,49.85261198,117.56,117.46,87.13222164]
[1741657179460,115.23261198,117.59,117.46,136.98483362]
[1741657179862,0.05467123,117.54,117.51,0.0650121]
[1741657180265,0.05467123,117.54,117.45,49.85261198]
[1741657180462,0.05467123,117.54,117.51,0.05480048]
[1741657180670,49.85261198,117.57,117.45,49.85261198]
[1741657180870,0.05679536,117.51,117.45,49.85261198]
[1741657181265,0.05679536,117.51,117.5,0.06017612]
[1741657181466,0.05679536,117.51,117.45,49.85261198]
[1741657181771,0.05679536,117.51,117.49,0.0655797]
[1741657181964,0.05679536,117.51,117.44,4.2071]
[1741657182267,0.05679536,117.51,117.46,0.05933143]
[1741657182469,49.85261198,117.49,117.46,0.05933143]
[1741657182663,49.85261198,117.49,117.43,4.2699]
[1741657182664,49.85261198,117.49,117.41,87.13222164]
[1741657182969,49.85261198,117.45,117.41,87.13222164]
[1741657183171,65.38,117.44,117.38,87.13222164]
[1741657183872,0.0613237,117.42,117.4,0.05752655]
[1741657184968,65.38,117.46,117.4,49.91013853]
[1741657185376,0.205,117.52,117.4,49.91013853]
[1741657185377,65.38,117.5,117.42,49.85261198]
[1741657185765,65.38,117.52,117.44,49.85261198]
[1741657185967,0.3847,117.58,117.48,49.85261198]
[1741657186276,65.38,117.57,117.48,49.85261198]
[1741657186479,65.38,117.57,117.49,4.1834]
[1741657187175,115.23261198,117.57,117.49,4.1834]
[1741657187379,49.85261198,117.55,117.44,49.85261198]
[1741657187575,0.054819,117.54,117.43,4.425]
[1741657187874,49.85261198,117.53,117.43,4.425]
[1741657188471,49.85261198,117.53,117.4,49.85261198]
[1741657188977,0.06165547,117.48,117.45,0.05785804]
[1741657189480,0.06165547,117.48,117.45,0.05553443]
[1741657190370,0.06165547,117.48,117.38,53.87181198]
[1741657190565,0.06165547,117.48,117.38,4.0192]
[1741657190768,115.21261198,117.49,117.38,53.87181198]
[1741657191374,0.05852115,117.45,117.42,0.05481719]
[1741657192369,0.05852115,117.45,117.42,49.90742917]
[1741657192874,0.05852115,117.45,117.42,0.05481719]
[1741657203778,0.05852115,117.45,117.42,49.90742917]
[1741657203981,49.85261198,117.55,117.44,49.85261198]
[1741657204185,65.34,117.54,117.45,8.5629]
[1741657204381,49.85261198,117.53,117.45,8.5629]
[1741657204586,49.85261198,117.53,117.42,49.85261198]
[1741657204779,65.34,117.54,117.42,49.85261198]
[1741657204994,65.34,117.53,117.44,49.85261198]
[1741657205285,65.34,117.53,117.39,199.5629]
[1741657205286,0.05441364,117.49,117.47,0.05827803]
[1741657205879,281.02,117.57,117.48,49.85261198]
[1741657206086,65.32,117.56,117.48,49.85261198]
[1741657206390,281.02,117.57,117.48,49.85261198]
[1741657206592,65.32,117.56,117.48,49.85261198]
[1741657206785,65.32,117.56,117.47,8.5774]
[1741657206986,0.0593666,117.53,117.51,0.06134176]
[1741657209186,65.3,117.58,117.51,0.06134176]
[1741657209187,65.3,117.58,117.52,49.85261198]
[1741657209389,65.3,117.58,117.51,0.06134176]
[1741657209592,65.3,117.58,117.5,49.85261198]
[1741657209794,65.3,117.58,117.48,49.85261198]
[1741657210091,65.3,117.58,117.47,199.5774]
[1741657210291,65.3,117.58,117.52,0.05912092]
[1741657210487,194.0,117.7,117.55,49.85261198]
[1741657210688,49.85261198,117.72,117.55,306.13261198]
[1741657210890,54.29651198,117.72,117.62,49.85261198]
[1741657211197,16.77631968,117.74,117.66,49.85261198]
[1741657211489,128.38496244,117.75,117.68,49.85261198]
[1741657211690,128.38496244,117.75,117.7,49.85261198]
[1741657211890,128.38496244,117.75,117.69,0.06005134]
[1741657212288,128.38496244,117.75,117.7,49.85261198]
[1741657212690,128.38496244,117.75,117.69,0.06005134]
[1741657212892,128.38496244,117.75,117.7,49.85261198]
[1741657213091,0.06164118,117.73,117.69,0.06005134]
[1741657213587,0.06164118,117.73,117.7,49.85261198]
[1741657213793,128.38496244,117.75,117.72,49.85261198]
[1741657213995,128.38496244,117.75,117.69,0.06005134]
[1741657214296,128.38496244,117.75,117.7,49.85261198]
[1741657214491,65.22,117.87,117.74,49.85261198]
[1741657214700,4.2031,117.89,117.79,49.85261198]
[1741657214893,4.2031,117.89,117.81,49.85261198]
[1741657215293,65.22,117.88,117.74,191.0]
[1741657215493,49.85261198,117.85,117.74,191.0]
[1741657215700,49.85261198,117.83,117.7,49.85261198]
[1741657215894,65.2,117.82,117.7,49.85261198]
[1741657216394,49.85261198,117.8,117.75,0.05704867]
[1741657216594,334.78131198,117.81,117.7,49.85261198]
[1741657216998,49.85261198,117.81,117.7,49.85261198]
[1741657217193,4.2087,117.93,117.79,49.85261198]
[1741657217493,232.3188636,117.96,117.89,49.85261198]
[1741657217701,232.3188636,117.96,117.92,49.85261198]
[1741657218196,0.05704867,117.94,117.92,49.85261198]
[1741657218698,4.2087,118.02,117.92,49.85261198]
[1741657218894,334.62131198,118.02,117.92,0.05757647]
[1741657219093,49.85261198,117.99,117.84,49.85261198]
[1741657219298,49.85261198,117.96,117.84,49.85261198]
[1741657219702,4.1228,117.95,117.84,49.85261198]
[1741657219898,280.34,117.94,117.84,49.85261198]
[1741657220107,280.34,117.94,117.89,0.06171936]
[1741657220108,284.6399,117.94,117.89,0.06171936]
[1741657220304,284.6399,117.94,117.84,49.85261198]
[1741657220496,49.85261198,117.9,117.78,49.85261198]
[1741657220700,65.1,117.89,117.78,49.85261198]
[1741657221504,0.06022112,117.85,117.82,0.06230654]
[1741657222201,0.06022112,117.85,117.75,136.71853388]
[1741657222610,280.34,117.86,117.75,136.71853388]
[1741657223105,221.09899495,117.86,117.75,49.85261198]
[1741657223309,221.09899495,117.86,117.79,49.85261198]
[1741657223510,0.06432193,117.82,117.79,49.91180257]
[1741657225108,0.06432193,117.82,117.79,0.05919059]
[1741657225907,0.06432193,117.82,117.73,4.2286]
[1741657226210,49.85261198,117.82,117.71,1.69909098]
[1741657226510,49.85261198,117.78,117.71,1.69909098]
[1741657226710,65.04,117.77,117.71,1.69909098]
[1741657227008,65.04,117.77,117.68,4.0658]
[1741657227205,0.05484628,117.75,117.73,0.061963]
[1741657227602,0.05484628,117.75,117.66,49.85261198]
[1741657227808,0.05484628,117.75,117.64,49.85261198]
[1741657228009,49.85261198,117.74,117.63,4.0658]
[1741657229006,0.0556511,117.7,117.67,0.05962888]
[1741657230611,0.0556511,117.7,117.62,4.4242]
[1741657230809,0.0556511,117.7,117.6,49.85261198]
[1741657231106,65.04,117.71,117.6,49.85261198]
[1741657231304,280.28,117.7,117.6,49.85261198]
[1741657231704,280.28,117.7,117.62,49.85261198]
[1741657231909,0.06536024,117.66,117.64,0.0578451]
[1741657234107,114.89261198,117.65,117.55,4.515]
[1741657234308,114.89261198,117.65,117.55,4.2613]
[1741657234914,65.04,117.65,117.56,49.85261198]
[1741657235119,49.85261198,117.67,117.56,49.85261198]
[1741657235312,0.0541038,117.62,117.59,0.05706478]
[1741657235812,65.04,117.66,117.56,49.85261198]
[1741657236012,0.0651819,117.62,117.59,0.06370753]
[1741657238313,49.91779388,117.62,117.5,240.85261198]
[1741657238516,49.91779388,117.62,117.5,49.85261198]
[1741657238517,49.85261198,117.6,117.5,49.85261198]
[1741657238811,65.06,117.59,117.5,49.85261198]
[1741657239512,65.06,117.59,117.53,0.06299257]
[1741657239716,0.06214513,117.56,117.53,0.06299257]
[1741657242212,65.06,117.55,117.47,4.0803]
[1741657242415,65.06,117.55,117.44,53.91551198]
[1741657242819,49.85261198,117.54,117.44,53.91551198]
[1741657243015,49.85261198,117.5,117.4,49.85261198]
[1741657243209,69.3948,117.49,117.4,49.85261198]
[1741657243414,0.06425285,117.46,117.44,0.0647992]
[1741657247522,0.06425285,117.46,117.37,58.10921198]
[1741657247919,54.13911198,117.48,117.37,58.10921198]
[1741657248123,49.85261198,117.46,117.35,49.85261198]
[1741657248322,280.76,117.46,117.37,49.85261198]
[1741657248520,65.06,117.45,117.39,49.85261198]
[1741657248721,0.05649406,117.43,117.4,0.06349868]
[1741657250828,65.08,117.42,117.33,49.85261198]
[1741657251024,69.3268,117.42,117.33,49.85261198]
[1741657251625,65.06,117.47,117.37,49.85261198]
[1741657251924,49.85261198,117.46,117.33,240.85261198]
[1741657252124,0.05934084,117.43,117.33,49.85261198]
[1741657252428,49.85261198,117.44,117.33,49.85261198]
[1741657252818,49.85261198,117.46,117.35,49.85261198]
[1741657253021,69.3068,117.47,117.37,49.85261198]
[1741657253518,4.2629,117.51,117.43,49.85261198]
[1741657254426,4.1377,117.53,117.47,49.85261198]
[1741657254621,65.08,117.56,117.49,49.85261198]
[1741657254820,65.08,117.56,117.47,49.85261198]
[1741657255730,49.85261198,117.54,117.42,49.85261198]
[1741657256024,0.05465601,117.53,117.5,0.0570702]
[1741657256225,114.91261198,117.62,117.5,49.85261198]
[1741657256527,4.2926,117.62,117.52,49.85261198]
[1741657257623,4.2926,117.62,117.54,49.85261198]
[1741657257825,4.2926,117.62,117.56,0.05956732]
[1741657258828,330.65261198,117.7,117.58,49.85261198]
[1741657259024,4.0142,117.69,117.6,49.85261198]
[1741657260425,54.14771198,117.74,117.63,0.05960132]
[1741657260631,4.0142,117.73,117.64,49.85261198]
[1741657260928,280.8,117.87,117.7,49.85261198]
[1741657261131,49.85261198,117.83,117.72,49.85261198]
[1741657261426,69.0342,117.86,117.74,49.85261198]
[1741657261427,4.0142,117.86,117.74,49.85261198]
[1741657261627,69.0142,117.86,117.74,49.85261198]
[1741657261831,69.0142,117.86,117.76,49.85261198]
[1741657262235,69.0142,117.86,117.74,49.85261198]
[1741657262236,49.85261198,117.85,117.74,49.85261198]
[1741657262831,4.0142,117.86,117.76,49.85261198]
[1741657263027,4.0142,117.86,117.78,49.85261198]
[1741657263232,73.328,117.89,117.78,49.91502892]
[1741657263427,77.5411,117.89,117.78,49.85261198]
[1741657263630,77.5411,117.89,117.75,8.6968]
[1741657263831,49.85261198,117.88,117.78,49.85261198]
[1741657264029,77.5411,117.89,117.75,8.6968]
[1741657264329,69.1931,117.89,117.8,49.85261198]
[1741657264537,0.06167036,117.83,117.81,0.05885499]
[1741657264734,69.1931,117.89,117.81,0.05885499]
[1741657265028,0.06111592,117.83,117.8,49.85261198]
[1741657265233,49.85261198,117.92,117.8,52.39261198]
[1741657265441,49.85261198,117.92,117.8,49.91321066]
[1741657265633,49.85261198,117.9,117.8,0.06059868]
[1741657265930,4.2693,117.91,117.78,49.85261198]
[1741657266132,64.9,117.92,117.85,49.85261198]
[1741657266332,49.85261198,117.94,117.83,49.85261198]
[1741657266536,0.06329381,117.9,117.87,0.05846766]
[1741657268738,118.98191198,117.98,117.87,49.91107964]
[1741657269032,4.2693,117.98,117.89,49.85261198]
[1741657269733,54.07721198,118.02,117.91,49.85261198]
[1741657269937,54.07721198,118.02,117.92,0.06526904]
[1741657269938,0.05395045,117.95,117.92,0.06526904]
[1741657270335,49.85261198,118.0,117.86,0.3342]
[1741657270531,114.69261198,118.02,117.92,0.06056805]
[1741657270838,114.69261198,118.02,117.89,114.69261198]
[1741657271039,49.85261198,118.0,117.89,114.69261198]
[1741657271436,49.85261198,118.0,117.89,64.84]
[1741657271740,49.85261198,118.0,117.93,0.0597306]
[1741657272137,49.85261198,117.96,117.93,0.0597306]
[1741657272335,64.8,117.95,117.87,1.69678459]
[1741657272533,64.8,117.95,117.84,54.10521198]
[1741657272737,49.85261198,117.94,117.84,4.2526]
[1741657273140,49.85261198,117.92,117.84,4.2526]
[1741657273439,329.99261198,117.97,117.86,49.85261198]
[1741657273637,0.05844236,117.89,117.87,0.05775384]
[1741657273836,329.99261198,117.97,117.84,245.10521198]
[1741657274036,49.85261198,117.95,117.84,245.10521198]
[1741657274239,0.05742943,117.89,117.87,0.05518909]
[1741657274641,64.78,117.93,117.8,49.85261198]
[1741657274836,49.85261198,117.92,117.8,49.85261198]
[1741657275037,0.06079917,117.89,117.87,0.06127922]
[1741657275436,49.85261198,117.95,117.84,49.85261198]
[1741657275637,49.85261198,117.93,117.83,69.1683]
[1741657275941,49.85261198,117.91,117.82,191.0]
[1741657276138,114.61261198,117.91,117.8,49.85261198]
[1741657276736,114.61261198,117.91,117.84,0.05952569]
[1741657277336,64.76,117.91,117.84,0.05952569]
[1741657277637,49.85261198,117.93,117.84,0.05952569]
[1741657278145,49.85261198,117.91,117.79,69.3209]
[1741657278347,49.85261198,117.89,117.87,0.05823934]
[1741657278640,49.85261198,117.89,117.79,69.3209]
[1741657278941,49.85261198,117.89,117.87,0.05414574]
[1741657279245,49.85261198,117.91,117.79,69.3209]
[1741657279441,49.85261198,117.91,117.8,49.85261198]
[1741657279638,49.85261198,117.91,117.87,0.05827072]
[1741657280040,49.85261198,117.91,117.79,71.018837]
[1741657280246,49.85261198,117.89,117.88,0.06227974]
[1741657280548,49.85261198,117.89,117.79,6.278837]
[1741657281237,49.85261198,117.88,117.79,1.697937]
[1741657281438,49.85261198,117.84,117.79,1.697937]
[1741657281637,49.85261198,117.84,117.82,0.05553087]
[1741657281838,49.85261198,117.84,117.79,1.697937]
[1741657282438,0.06071533,117.85,117.79,1.697937]
[1741657283035,0.06071533,117.85,117.81,0.05768911]
[1741657283647,49.85261198,117.84,117.81,0.05768911]
[1741657283947,49.85261198,117.82,117.68,49.85261198]
[1741657284246,49.85261198,117.78,117.68,64.7]
[1741657284546,49.85261198,117.8,117.68,114.55261198]
[1741657284738,49.85261198,117.8,117.68,49.85261198]
[1741657284944,49.85261198,117.8,117.7,49.85261198]
[1741657285247,0.05433484,117.75,117.73,0.06253363]
[1741657285743,49.85261198,117.8,117.73,0.06253363]
[1741657285949,49.85261198,117.77,117.73,0.06253363]
[1741657286248,64.7,117.81,117.71,49.85261198]
[1741657286642,0.05517785,117.76,117.74,0.06413056]
[1741657287148,49.85261198,117.8,117.67,123.40601198]
[1741657287348,0.05818643,117.76,117.74,0.06311227]
[1741657287545,49.91079841,117.76,117.65,49.85261198]
[1741657287850,49.85261198,117.76,117.65,49.85261198]
[1741657288152,49.85261198,117.76,117.63,49.85261198]
[1741657288637,49.85261198,117.76,117.68,0.06309581]
[1741657288842,0.05472281,117.71,117.68,0.06309581]
[1741657289049,0.05472281,117.71,117.62,1.47833475]
[1741657289050,0.05472281,117.71,117.63,49.85261198]
[1741657289248,0.05472281,117.71,117.68,0.06279042]
[1741657289442,49.85261198,117.76,117.68,0.06279042]
[1741657289647,0.05557116,117.71,117.68,0.06279042]
[1741657289840,0.05557116,117.71,117.63,49.85261198]
[1741657290049,0.05557116,117.71,117.68,0.06028855]
[1741657290245,49.85261198,117.76,117.68,0.06028855]
[1741657290550,0.05850154,117.71,117.65,49.85261198]
[1741657290943,0.05850154,117.71,117.67,49.85261198]
[1741657291241,73.1709,117.83,117.73,49.85261198]
[1741657291448,64.7,117.83,117.73,49.85261198]
[1741657291750,58.07371198,117.86,117.73,49.85261198]
[1741657291945,49.85261198,117.88,117.77,49.85261198]
[1741657292141,114.53261198,117.9,117.79,49.85261198]
[1741657292349,0.05380881,117.84,117.81,0.0618547]
[1741657292748,4.4134,117.89,117.77,49.85261198]
[1741657293054,0.06487701,117.84,117.81,0.06532776]
[1741657293255,114.61748899,117.84,117.73,240.85261198]
[1741657293553,114.55261198,117.84,117.73,49.85261198]
[1741657293753,49.85261198,117.82,117.71,49.85261198]
[1741657294147,4.2134,117.83,117.74,142.8041684]
[1741657294553,0.05368249,117.78,117.75,0.06260862]
[1741657294858,0.05368249,117.78,117.74,142.8041684]
[1741657295258,0.05368249,117.78,117.75,0.05361061]
[1741657295557,114.58629447,117.78,117.74,129.4753684]
[1741657295956,64.73368249,117.78,117.74,129.4753684]
[1741657296156,64.73368249,117.78,117.71,49.85261198]
[1741657296654,0.05368249,117.78,117.7,4.8641]
[1741657296855,0.05368249,117.78,117.73,0.06519469]
[1741657297156,49.85261198,117.8,117.73,0.06519469]
[1741657297356,0.05957148,117.77,117.73,0.06519469]
[1741657297859,0.05957148,117.77,117.74,0.06014758]
[1741657303658,0.05957148,117.77,117.74,4.13354758]
[1741657304166,4.0698,117.81,117.74,4.13354758]
[1741657304167,49.85261198,117.88,117.75,49.85261198]
[1741657304355,4.1259,117.86,117.79,49.85261198]
[1741657304555,4.1697,117.91,117.81,49.85261198]
[1741657304761,4.1697,117.91,117.83,49.85261198]
[1741657305060,49.85261198,117.9,117.78,330.07261198]
[1741657305456,0.05771973,117.85,117.83,0.05597299]
[1741657305958,49.85261198,117.86,117.75,4.0833]
[1741657306159,49.85261198,117.82,117.72,86.8659219]
[1741657306355,49.85261198,117.8,117.72,86.8659219]
[1741657306556,4.2325,117.79,117.72,86.8659219]
[1741657307061,0.06338067,117.77,117.74,0.05392394]
[1741657311362,49.85261198,117.76,117.66,4.4225]
[1741657311661,49.85261198,117.74,117.66,109.31874455]
[1741657311858,64.56,117.73,117.66,109.31874455]
[1741657312264,49.85261198,117.72,117.66,109.31874455]
[1741657312561,0.05416891,117.71,117.68,0.06208298]
[1741657314459,49.85261198,117.8,117.69,49.85261198]
[1741657314654,4.0645,117.82,117.71,49.85261198]
[1741657314856,4.0645,117.82,117.73,49.85261198]
[1741657315062,114.41261198,117.86,117.75,49.85261198]
[1741657315257,8.1207,117.87,117.77,49.85261198]
[1741657315460,72.6807,117.87,117.79,49.85261198]
[1741657315762,49.85261198,117.92,117.81,49.9109035]
[1741657315957,68.6162,117.91,117.81,49.9109035]
[1741657316158,4.0562,117.91,117.81,49.85261198]
[1741657316955,4.0562,117.91,117.85,0.05900414]
[1741657317158,0.06277352,117.87,117.85,0.05900414]
[1741657317359,64.54,117.92,117.85,0.05900414]
[1741657317665,4.4414,117.93,117.85,49.91161612]
[1741657317964,118.51791198,117.98,117.87,49.85261198]
[1741657318358,49.85261198,117.96,117.85,49.85261198]
[1741657318562,0.06528644,117.94,117.91,0.05945697]
[1741657319361,49.91789842,117.94,117.83,240.85261198]
[1741657319757,49.85261198,117.94,117.83,240.85261198]
[1741657320267,49.85261198,117.92,117.8,8.5361]
[1741657320459,0.05731969,117.9,117.87,0.0581711]
[1741657320652,68.604,117.91,117.87,0.0581711]
[1741657321156,0.06373374,117.9,117.87,0.0581711]
[1741657321357,49.91634572,117.9,117.8,8.5361]
[1741657321554,54.11224572,117.9,117.8,8.5361]
[1741657321759,54.04851198,117.9,117.8,8.5361]
[1741657321961,54.04851198,117.9,117.8,4.2278]
[1741657322161,49.85261198,117.86,117.75,4.3234]
[1741657322466,0.06190332,117.82,117.79,0.06364243]
[1741657324867,49.9145153,117.82,117.71,91.1910219]
[1741657325162,49.85261198,117.82,117.71,91.1910219]
[1741657325369,49.85261198,117.82,117.71,4.3251]
[1741657325564,49.85261198,117.8,117.71,4.3251]
[1741657325770,68.5303,117.79,117.71,4.3251]
[1741657325962,68.5303,117.79,117.68,53.99671198]
[1741657325963,49.85261198,117.78,117.68,4.1441]
[1741657326162,49.85261198,117.76,117.68,4.1441]
[1741657326462,49.85261198,117.76,117.66,90.9074219]
[1741657326667,54.10911198,117.76,117.66,90.9074219]
[1741657327068,49.85261198,117.74,117.66,90.9074219]
[1741657327269,0.05765051,117.72,117.7,0.06534782]
[1741657328475,49.85261198,117.71,117.6,49.85261198]
[1741657328974,4.4088,117.72,117.62,49.85261198]
[1741657329278,114.29261198,117.71,117.6,49.85261198]
[1741657329674,0.0577143,117.67,117.64,0.05739802]
[1741657335474,0.0577143,117.67,117.64,49.91001]
[1741657336375,0.0577143,117.67,117.64,0.05739802]
[1741657338282,4.232,117.75,117.65,49.85261198]
[1741657338485,4.2174,117.77,117.69,49.85261198]
[1741657338878,64.4,117.8,117.71,49.85261198]
[1741657339075,64.4,117.8,117.73,49.85261198]
[1741657339481,0.05483454,117.78,117.75,49.90984698]
[1741657339784,0.05483454,117.78,117.75,0.057235]
[1741657340688,4.2174,117.83,117.75,0.057235]
[1741657340985,4.2174,117.83,117.74,49.85261198]
[1741657341288,280.3,117.88,117.79,49.85261198]
[1741657341489,64.38,117.9,117.79,49.85261198]
[1741657341688,64.38,117.92,117.82,0.05846217]
[1741657341985,114.23261198,117.92,117.82,0.05846217]
[1741657342175,114.23261198,117.92,117.81,49.85261198]
[1741657342382,64.38,117.92,117.81,49.85261198]
[1741657342780,114.23261198,117.92,117.81,49.85261198]
[1741657342986,114.23261198,117.92,117.79,114.21261198]
[1741657343187,49.85261198,117.92,117.82,49.85261198]
[1741657343495,0.05939373,117.88,117.85,0.05650751]
[1741657343879,344.64,117.94,117.84,49.85261198]
[1741657344082,344.64,117.94,117.85,0.05914568]
[1741657344286,344.64,117.94,117.86,49.85261198]
[1741657344682,344.64,117.94,117.84,54.13651198]
[1741657344890,394.49261198,117.94,117.84,54.13651198]
[1741657345192,0.05770313,117.9,117.88,0.05376976]
[1741657350898,64.3,117.97,117.88,0.05376976]
[1741657351194,64.3,117.97,117.88,49.85261198]
[1741657351400,64.24,117.98,117.88,49.85261198]
[1741657351600,4.306,117.99,117.9,49.85261198]
[1741657351900,68.546,117.99,117.9,49.85261198]
[1741657352098,0.06339607,117.96,117.93,0.05649028]
[1741657352602,64.22,118.03,117.93,0.05649028]
[1741657352997,114.07261198,118.02,117.9,49.85261198]
[1741657353408,49.85261198,118.0,117.88,49.85261198]
[1741657353902,0.05424375,117.95,117.93,0.05666756]
[1741657354307,64.2,117.96,117.9,49.85261198]
[1741657354604,0.05461454,117.95,117.93,0.05919147]
[1741657355004,64.2,117.96,117.86,240.85261198]
[1741657355205,0.05645118,117.95,117.93,0.06045665]
[1741657355505,64.2,117.96,117.86,240.85261198]
[1741657355703,64.2,117.96,117.9,49.85261198]
[1741657355899,0.05683629,117.95,117.93,0.0584709]
[1741657356302,114.03261198,118.03,117.93,0.0584709]
[1741657356504,64.18,118.03,117.94,49.85261198]
[1741657356806,4.4402,118.04,117.95,4.2298]
[1741657357301,4.4402,118.04,117.96,49.85261198]
[1741657357496,0.06027885,118.01,117.98,0.05706653]
[1741657358405,0.06027885,118.01,117.98,49.90967851]
[1741657358705,0.06027885,118.01,117.98,0.05706653]
[1741657359701,0.06027885,118.01,117.9,49.85261198]
[1741657360004,54.09671198,118.01,117.9,53.88501198]
[1741657361113,0.06116293,117.97,117.94,0.05923254]
[1741657361898,4.4402,118.04,117.95,49.85261198]
[1741657362104,4.3986,118.06,117.98,49.85261198]
[1741657363210,0.06539836,118.03,118.01,0.06437706]
[1741657364405,0.06539836,118.03,118.02,49.85261198]
[1741657364911,0.06539836,118.03,118.01,0.06437706]
[1741657365306,9.836e-05,118.03,118.02,49.85261198]
[1741657365810,9.836e-05,118.03,118.01,0.06437706]
[1741657366010,9.836e-05,118.03,118.02,49.85261198]
[1741657366711,9.836e-05,118.03,118.01,0.06437706]
[1741657366912,9.836e-05,118.03,118.02,49.85261198]
[1741657367106,4.1881,118.11,118.02,49.85261198]
[1741657367306,54.04071198,118.11,118.01,0.06437706]
[1741657367615,4.1881,118.11,118.01,49.85261198]
[1741657368112,68.2081,118.11,118.03,49.85261198]
[1741657368410,68.2081,118.11,118.05,0.05579767]
[1741657368610,118.06071198,118.11,118.05,0.05579767]
[1741657369419,68.2081,118.11,118.05,0.05579767]
[1741657374414,63.96,118.1,118.05,0.05579767]
[1741657374714,4.1881,118.11,118.05,0.05579767]
[1741657375503,68.1481,118.11,118.05,0.05579767]
[1741657375912,279.54,118.22,118.07,49.85261198]
[1741657376208,279.54,118.22,118.03,49.85261198]
[1741657376209,4.2763,118.18,118.11,49.85261198]
[1741657376410,4.2763,118.18,118.13,0.05769169]
[1741657376608,49.85261198,118.16,118.13,0.05769169]
[1741657376808,49.85261198,118.14,118.03,49.85261198]
[1741657377211,63.92,118.15,118.03,49.85261198]
[1741657377415,63.92,118.15,118.05,49.85261198]
[1741657377808,63.92,118.16,118.07,49.85261198]
[1741657378010,0.06340108,118.11,118.09,0.06112925]
[1741657378214,63.8946723,118.16,118.09,49.91374123]
[1741657378416,4.2763,118.18,118.11,49.85261198]
[1741657379314,4.2763,118.18,118.13,0.05540113]
[1741657380012,194.0,118.29,118.14,49.85261198]
[1741657380205,1727.17261198,118.38,118.16,49.85261198]
[1741657380206,121.81991198,118.28,118.16,49.85261198]
[1741657380510,121.81991198,118.28,118.21,0.06259869]
[1741657380712,194.0,118.35,118.21,0.06259869]
[1741657380913,50.93524008,118.33,118.22,49.85261198]
[1741657381106,1.0826281,118.33,118.24,49.85261198]
[1741657381310,1.0826281,118.33,118.26,0.05675725]
[1741657381516,4.2382,118.32,118.26,0.05675725]
[1741657381710,49.85261198,118.31,118.26,0.05675725]
[1741657382011,49.85261198,118.29,118.19,4.368]
[1741657382313,49.85261198,118.25,118.15,4.368]
[1741657382518,49.85261198,118.23,118.12,49.85261198]
[1741657382713,72.5299,118.24,118.12,49.85261198]
[1741657383007,49.85261198,118.23,118.12,49.85261198]
[1741657383213,0.06074592,118.19,118.17,0.06299343]
[1741657383606,113.69261198,118.28,118.17,49.91560541]
[1741657383815,49.85261198,118.24,118.17,0.06299343]
[1741657384011,49.85261198,118.24,118.15,86.8659219]
[1741657384212,4.4212,118.27,118.15,136.71853388]
[1741657384426,4.4212,118.27,118.19,49.85261198]
[1741657384811,4.4212,118.27,118.22,0.06375711]
[1741657385218,4.4117,118.29,118.23,49.85261198]
[1741657385410,4.4117,118.29,118.22,0.06375711]
[1741657385717,4.4117,118.29,118.24,0.06047436]
[1741657388121,4.4212,118.31,118.24,0.06047436]
[1741657389021,4.4212,118.31,118.24,49.91308634]
[1741657389919,5.0791281,118.33,118.26,49.85261198]
[1741657390316,5.0791281,118.33,118.28,0.05979869]
[1741657394823,54.93174008,118.33,118.28,0.05979869]
[1741657395215,5.0791281,118.33,118.28,0.05979869]
[1741657395423,1.0826281,118.33,118.29,49.85261198]
[1741657395619,1.0826281,118.33,118.29,54.15791198]
[1741657395817,1.0826281,118.33,118.29,58.44771198]
[1741657396215,1.0826281,118.33,118.31,49.85261198]
[1741657396421,2.81e-05,118.33,118.31,49.85261198]
[1741657396826,2.81e-05,118.33,118.31,49.91615322]
[1741657397222,12.0509,118.41,118.31,49.91615322]
[1741657397428,12.0509,118.41,118.33,49.85261198]
[1741657397629,12.0509,118.41,118.35,0.05647171]
[1741657398223,61.90351198,118.41,118.35,0.05647171]
[1741657399025,12.0509,118.41,118.35,0.05647171]